{"text_format":"3","workbook":"xlsx","n_sheets":4,"sheets":["МЕНЮ","Заявка ЮР лицо, ИП","Заявка Физ. лицо","Списки"],"not_rendered":{"defined_names":5},"read":"whole","date_system":"1900"}

{"sheet":"МЕНЮ","index":0,"n_rows":7,"n_cols":2,"rows_kept":7}
[]
[null,"Выберите нужный вариант:"]
[null,"ЗАКЛЮЧЕНИЕ ДОГОВОРА ВОЗМЕЗДНОГО ОКАЗАНИЯ УСЛУГ ПО ПОДГОТОВКЕ И ВЫДАЧЕ ТЕХНИЧЕСКОГО ЗАДАНИЯ НА ПРОИЗВОДСТВО РАБОТ ПРИ РЕКОНСТРУКЦИИ ОБЪЕКТА"]
[null,"Форма заявки в случае, если Вы:"]
[null,"Юридическое лицо"]
[null,"Индивидуальный предприниматель"]
[null,"Физическое лицо"]

{"sheet":"Заявка ЮР лицо, ИП","index":1,"n_rows":123,"n_cols":10,"rows_kept":123,"merged":[[1,0,1,9],[3,5,3,8],[4,5,4,8],[5,0,5,9],[10,3,10,9],[11,3,11,9],[13,1,13,9],[14,1,14,9],[17,1,17,9],[17,10,19,10],[19,1,19,9],[20,1,20,3],[20,5,20,9],[20,10,22,10],[21,2,21,3],[21,5,21,6],[22,8,22,9],[23,1,23,9],[25,1,25,9],[26,8,26,9],[27,1,27,9],[28,1,28,9],[29,1,29,9],[31,1,31,9],[32,1,32,9],[32,10,34,10],[33,1,33,9],[34,1,34,9],[35,1,35,9],[36,1,36,2],[36,6,36,7],[38,1,38,3],[38,5,38,9],[40,1,40,3],[40,5,40,9],[42,1,42,9],[44,1,44,3],[44,5,44,9],[46,1,46,3],[46,6,46,9],[49,1,49,4],[49,5,49,9],[53,1,53,4],[53,6,53,9],[55,1,55,9],[57,1,57,3],[57,4,57,6],[59,1,59,9],[63,0,63,2],[77,0,77,9],[81,0,81,1],[81,3,81,9],[84,0,84,9],[86,0,86,7],[86,9,88,9],[88,0,88,7],[90,0,90,9],[92,1,92,7],[92,9,94,9],[94,1,94,7],[102,1,102,9],[103,1,103,9],[107,1,107,9],[109,1,109,9],[110,1,110,9],[114,1,114,9],[115,1,115,9],[116,1,116,9],[117,1,117,9],[118,1,118,9],[119,1,119,9],[122,1,122,2],[122,8,122,9]]}
[]
["На бланке организации / индивидуального предпринимателя"]
[]
[{"$nulls":5},"Начальнику Управления по технологическим заданиям и согласованию проектов ПАО \"МОЭК\""]
[]
["ЗАЯВКА НА ЗАКЛЮЧЕНИЕ ДОГОВОРА ВОЗМЕЗДНОГО ОКАЗАНИЯ УСЛУГ ПО ПОДГОТОВКЕ И ВЫДАЧЕ ТЕХНИЧЕСКОГО ЗАДАНИЯ НА ПРОИЗВОДСТВО РАБОТ ПРИ РЕКОНСТРУКЦИИ ОБЪЕКТА"]
[{"$nulls":4},"(для юридического лица/индивидуального предпринимателя)"]
[]
[]
[]
["Прошу Вас подготовить и выдать техническое задание на"]
[{"$nulls":3},"выбрать нужный вариант"]
[]
["в связи с:"]
[null,"указать причину"]
[]
[]
["1. Сведения о заказчике:"]
[]
["Полное наименование организации / Индивидуальный предприниматель "]
[]
["Запись о включении в ЕГРЮЛ / ЕГРИП (ОГРН / ОГРНИП)","от",null,null,"№"]
[]
["Фамилия Имя Отчество руководителя организации"]
[]
["Должность руководителя"]
[]
["Фамилия Имя Отчество уполномоченного представителя"]
[null,"Указывается лицо, имеющее право действовать от имени заявителя на основании доверенности либо без доверенности на основании учредительных документов"]
["Документ, подтверждающий полномочия представителя"]
[]
["Адрес места нахождения * / Адрес регистрации по месту жительства"]
[null,"Индекс, город, улица, дом, строение, корпус, владение"]
[null,"* Место нахождения юридического лица определяется местом его государственной регистрации на территории Российской Федерации. Юридическое лицо несет риск последствий неполучения юридически значимых сообщений, доставленных по адресу, указанному в ЕГРЮЛ. Сообщения, доставленные по адресу, указанному в ЕГРЮЛ, считаются полученными юридическим лицом, даже если оно не находится по указанному адресу"]
["Почтовый адрес"]
[null,"Индекс, город, улица, дом, строение, корпус, владение"]
["ИНН",null,null,"КПП",null,"ОКПО"]
[]
["р/с",{"$nulls":3},"в"]
[]
["к/с",{"$nulls":3},"БИК"]
[]
["Контактное лицо \n(Фамилия Имя Отчество)"]
[]
["Контактный телефон организации",{"$nulls":3},"Факс"]
[]
["Контактный телефон мобильный",{"$nulls":4},"e-mail"]
[]
["Наличие возможности подписания договора и закрывающих документов посредством ЭДО (электронного документооборота) \n(поле обязательно для заполнения) ",null,"ДА",{"$nulls":3},"НЕТ"]
[null,"указать наименование оператора ЭДО:\n\n___________________________________________________\nОБЯЗАТЕЛЬНО УКАЗАТЬ:\nдолжность, Фамилию Имя Отчество, № и дату машиночитаемой доверенности подписанта документов по ЭДО:\n\n____________________________________________________\n____________________________________________________",{"$nulls":3},"приложить к заявке мотивированный отказ в свободной форме на бланке организации/ИП с подписью руководителя и печатью (при наличии)     "]
[]
["2. Местонахождение объекта"]
[]
["Город",{"$nulls":4},"Район"]
[]
["Населеный пункт"]
[]
["Округ",{"$nulls":3},"выбрать из списка"]
[]
["Улица"]
[]
["Дом",null,null,"Владение",null,"Корпус",null,null,"Строение"]
[]
["3. Технические параметры объекта"]
["3.1. Таблица тепловых нагрузок по видам потребления  (Заполняется при изменении / перераспределении тепловых нагрузок)",{"$nulls":7},"поле не заполняется"]
[]
[{"$nulls":8},"поле считается автоматически"]
[]
[]
["Для реконструируемых объектов с изменением нагрузки:"]
[]
["Наименование","Отопление","Вентиляция","Тепловые завесы","ГВС ср.","ГВС макс.","Кондиционирование","Прочее","Всего (с учетом ГВС ср.)","Всего (с учетом ГВС макс)"]
["Тепловая нагрузка существующая, Гкал / час",{"v":0,"d":"0.00"},{"v":0,"d":"0.00"},{"v":0,"d":"0.00"},{"v":0,"d":"0.00"},{"v":0,"d":"0.00"},{"v":0,"d":"0.00"},{"v":0,"d":"0.00"},{"$f":"B73+C73+D73+E73+G73+H73","v":{"v":0,"d":"0.00"}},{"$f":"B73+C73+D73+F73+G73+H73","v":{"v":0,"d":"0.00"}}]
["Тепловая нагрузка после реконструкции, Гкал / час",{"v":0,"d":"0.00"},{"v":0,"d":"0.00"},{"v":0,"d":"0.00"},{"v":0,"d":"0.00"},{"v":0,"d":"0.00"},{"v":0,"d":"0.00"},{"v":0,"d":"0.00"},{"$f":"B74+C74+D74+E74+G74+H74","v":{"v":0,"d":"0.00"}},{"$f":"B74+C74+D74+F74+G74+H74","v":{"v":0,"d":"0.00"}}]
["Тепловая нагрузка дополнительная, Гкал / час (считается как разница между Тепловая нагрузка после реконструкции и Тепловая нагрузка существующая)",{"$f":"B74-B73","v":{"v":0,"d":"0.00"}},{"$f":"C74-C73","v":{"v":0,"d":"0.00"}},{"v":0,"d":"0.00"},{"v":0,"d":"0.00"},{"v":0,"d":"0.00"},{"v":0,"d":"0.00"},{"v":0,"d":"0.00"},{"$f":"I74-I73","v":{"v":0,"d":"0.00"}},{"$f":"J74-J73","v":{"v":0,"d":"0.00"}}]
["Температурный график"]
["Схема подключения (выбрать из выпадающего списка)"]
["ВАЖНО: При реконструкции нескольких объектов (зданий/корпусов), подключенных от одного абонента, в таблицу необходимо свести все объекты по аналогии."]
[]
["3.2 Назначение объекта:"]
["выбрать категорию из списка",null,null,"комментарий (выбрать из списка)"]
[]
[]
[]
["4. Проект договора:"]
[]
["        прошу направить по почтовому адресу, указанному в разделе 1 заявки",{"$nulls":8},"выбрать один вариант"]
[]
["        заберу самостоятельно в офисе ПАО \"МОЭК\" по адресу: г. Москва, Автозаводская ул., д. 12, пн-чт 8:00-17:00, пт 8:00-15:45"]
[]
["5. О готовности технического задания прошу уведомить меня:"]
[]
["по телефону:",{"$nulls":8},"выбрать один вариант"]
[]
["по электронной почте по адресу:"]
[]
[]
[]
["Документы, прилагаемые к заявке:"]
[]
["Документы, подтверждающие полномочия лица, действующего от имени заказчика:"]
["для юридического лица","Документ о назначении руководителя юридического лица;"]
[null,"Доверенность представителя заказчика на право подписания заявки (в случае подписания заявки лицом, действующим на основании доверенности)."]
["для индивидуального предпринимателя","Доверенность представителя заказчика на право подписания заявки (в случае подписания заявки лицом, действующим на основании доверенности)."]
["Заверенные копии учредительных документов:"]
["для юридического лица","Устав юридического лица (в том числе все изменения и дополнения к нему);"]
[null,"Свидетельство о государственной регистрации юридического лица или лист записи ЕГРЮЛ (для ю/л созданных с 01.01.2017);"]
[null,"Свидетельство о внесении записи в единый государственный реестр юридических лиц о юридическом лице (далее – ЕГРЮЛ), зарегистрированном до 01.07.2002, в случае создания контрагента до 01.07.2002;"]
[null,"Выписка из ЕГРЮЛ. Дата выдачи выписки из ЕГРЮЛ не должна превышать 30 дней на дату представления;"]
[null,"Копии документов, подтверждающих право пользования земельным участком/объектом капитального строительства, в том числе для целей проведения работ на земельном участке/объекте капитального строительства."]
[null,"Копия действующего договора на теплоснабжение с ПАО «МОЭК» с актом разграничения балансовой принадлежности и эксплуатационной ответственности сторон (для реконструируемого объекта капитального строительства);"]
[null,"Согласие всех собственников помещений при наличии более одного собственника помещения."]
["для индивидуального предпринимателя","Свидетельство о государственной регистрации физического лица в качестве индивидуального предпринимателя;"]
[null,"Свидетельство о постановке на учет в налоговом органе индивидуального предпринимателя;"]
[null,"Выписка из единого государственного реестра индивидуальных предпринимателей (далее – ЕГРИП). Дата выдачи выписки из ЕГРИП не должна превышать 30 дней на дату представления."]
["Перечень общих документов:","Ситуационный план расположения реконструируемого объекта с привязкой к территории населенного пункта или элементам территориального деления в схеме теплоснабжения (М1:2000) (предоставляется в формате pdf)."]
[null,"Сведения о наличии реконструкции/модернизации подключенного объекта (к заявке на реконструкцию/модернизацию/капитальный ремонт тепловых пунктов/внутренних систем теплоснабжения/монтаж АУУ/установку расширительных баков)."]
[null,"Копия действующего договора/контракта на теплоснабжение с актом разграничения балансовой принадлежности и эксплуатационной ответственности сторон."]
[null,"Топографическая карта земельного участка в масштабе 1:500 с указанием всех наземных и подземных коммуникаций и сооружений с указанием границ участка, отведенного под застройку и размещением проектируемого (реконструируемого) объекта (к заявке на перустройство (вынос/сохранность) тепловых сетей ПАО \"МОЭК\" в зоне строительства/реконструкции/приспособления объектов капитального строительства, на переустройство (вынос/сохранность) тепловых сетей ПАО \"МОЭК\" в зоне производства работ по строительству/реконструкции линейного объекта) (предоставляется в формате pdf)."]
[null,"Копии документов, подтверждающих право пользования земельным участком/объектом капитального строительства, в том числе для целей проведения работ на земельном участке/объекте капитального строительства."]
[]
["Заказчик:"]
[null,"Подпись",{"$nulls":3},"Фамилия И.О.",null,null,"Дата: дд.мм.гггг"]

{"sheet":"Заявка Физ. лицо","index":2,"n_rows":100,"n_cols":10,"rows_kept":100,"merged":[[1,6,1,9],[2,5,2,8],[3,5,3,8],[4,0,4,9],[8,3,8,9],[9,3,9,9],[11,1,12,9],[13,1,14,9],[16,3,16,4],[16,6,16,7],[17,1,17,9],[17,10,19,10],[19,1,19,9],[20,1,20,3],[20,5,20,9],[21,1,21,9],[22,1,22,9],[23,1,23,9],[25,1,25,9],[26,1,26,9],[26,10,27,10],[27,1,27,9],[28,1,28,9],[29,1,29,2],[29,6,29,7],[31,1,31,3],[31,5,31,9],[33,1,33,3],[33,5,33,9],[35,1,35,9],[38,1,38,3],[38,6,38,9],[42,1,42,4],[42,6,42,9],[44,1,44,9],[46,1,46,3],[46,4,46,6],[48,1,48,9],[52,0,52,2],[67,0,67,9],[69,0,69,2],[70,0,70,1],[70,3,70,9],[73,0,73,9],[75,0,75,7],[75,9,76,9],[76,0,76,7],[78,0,78,9],[80,1,80,7],[80,9,82,9],[82,1,82,7],[87,1,87,9],[88,1,88,9],[89,1,89,9],[90,1,90,9],[91,1,91,9],[92,1,92,9],[93,1,93,9],[98,8,98,9],[99,1,99,2],[99,8,99,9]]}
[]
[]
[{"$nulls":5},"Начальнику Управления по технологическим заданиям и согласованию проектов ПАО \"МОЭК\""]
[]
["ЗАЯВКА НА ЗАКЛЮЧЕНИЕ ДОГОВОРА ВОЗМЕЗДНОГО ОКАЗАНИЯ УСЛУГ ПО ПОДГОТОВКЕ И ВЫДАЧЕ ТЕХНИЧЕСКОГО ЗАДАНИЯ НА ПРОИЗВОДСТВО РАБОТ ПРИ РЕКОНСТРУКЦИИ ОБЪЕКТА "]
[{"$nulls":4},"(для физического лица)"]
[]
[]
["Прошу Вас подготовить и выдать техническое задание  на"]
[{"$nulls":3},"выбрать нужный вариант"]
[]
["в связи с:"]
[]
[null,"указать причину"]
[]
[]
[]
["1. Сведения о заказчике:"]
[]
["Фамилия Имя Отчество заявителя"]
[]
["Фамилия Имя Отчество уполномоченного представителя"]
[null,"Указывается лицо, имеющее право действовать от имени заявителя на основании доверенности"]
["Документ, подтверждающий полномочия представителя"]
[]
["Адрес регистрации по месту жительства"]
[null,"Индекс, город, улица, дом, строение, корпус, владение"]
["Почтовый адрес"]
[null,"Индекс, город, улица, дом, строение, корпус, владение"]
["ИНН",null,null,"КПП",null,"ОКПО"]
[]
["р/с",{"$nulls":3},"в"]
[]
["к/с",{"$nulls":3},"БИК"]
[]
["Контактное лицо (Ф.И.О.)"]
[]
[]
["Контактный телефон мобильный",{"$nulls":4},"e-mail"]
[]
["2. Местонахождение объекта"]
[]
["Город",{"$nulls":4},"Район"]
[]
["Населеный пункт"]
[]
["Округ",{"$nulls":3},"выбрать из списка"]
[]
["Улица"]
[]
["Дом",null,null,"Владение",null,"Корпус",null,null,"Строение"]
[]
["3. Технические параметры объекта"]
["3.1 Таблица тепловых нагрузок по видам потребления  (Заполняется при изменении / перераспределении тепловых нагрузок)",{"$nulls":7},"поле не заполняется"]
[]
[{"$nulls":8},"поле считается автоматически"]
[]
[]
["Для реконструируемых объектов с изменением нагрузки:"]
[]
["Наименование","Отопление","Вентиляция","Тепловые завесы","ГВС ср.","ГВС макс.","Кондиционирование","Прочее","Всего (с учетом ГВС ср.)","Всего (с учетом ГВС макс)"]
["Тепловая нагрузка существующая, Гкал / час",{"v":0,"d":"0.00"},{"v":0,"d":"0.00"},{"v":0,"d":"0.00"},{"v":0,"d":"0.00"},{"v":0,"d":"0.00"},{"v":0,"d":"0.00"},{"v":0,"d":"0.00"},{"$f":"B62+C62+D62+E62+G62+H62","v":{"v":0,"d":"0.00"}},{"$f":"B62+C62+D62+F62+G62+H62","v":{"v":0,"d":"0.00"}}]
["Тепловая нагрузка после реконструкции, Гкал / час",{"v":0,"d":"0.00"},{"v":0,"d":"0.00"},{"v":0,"d":"0.00"},{"v":0,"d":"0.00"},{"v":0,"d":"0.00"},{"v":0,"d":"0.00"},{"v":0,"d":"0.00"},{"$f":"B63+C63+D63+E63+G63+H63","v":{"v":0,"d":"0.00"}},{"$f":"B63+C63+D63+F63+G63+H63","v":{"v":0,"d":"0.00"}}]
["Тепловая нагрузка дополнительная, Гкал / час (считается как разница между Тепловая нагрузка после реконструкции и Тепловая нагрузка существующая)",{"$f":"B63-B62","v":{"v":0,"d":"0.00"}},{"$f":"C63-C62","v":{"v":0,"d":"0.00"}},{"v":0,"d":"0.00"},{"v":0,"d":"0.00"},{"v":0,"d":"0.00"},{"v":0,"d":"0.00"},{"v":0,"d":"0.00"},{"$f":"I63-I62","v":{"v":0,"d":"0.00"}},{"$f":"J63-J62","v":{"v":0,"d":"0.00"}}]
["Температурный график"]
["Схема подключения (выбрать из выпадающего списка)"]
[]
["ВАЖНО: При реконструкции нескольких объектов (зданий/корпусов), подключенных от одного абонента, в таблицу необходимо свести все  объекты по аналогии."]
["3.2 Назначение объекта:"]
["выбрать категорию из списка",null,null,"комментарий (выбрать из списка)"]
[]
[]
[]
["4. Проект договора:"]
[]
["      прошу направить по почтовому адресу, указанному в разделе 1 заявки",{"$nulls":8},"выбрать один вариант"]
["      заберу самостоятельно в офисе ПАО \"МОЭК\" по адресу: г. Москва, Автозаводская ул., д. 12, пн-чт 8:00-17:00, пт 8:00-15:45"]
[]
["5. О готовности технического задания прошу уведомить меня:"]
[]
["по телефону:",{"$nulls":8},"выбрать один вариант"]
[]
["по электронной почте по адресу:"]
[]
[]
["Документы, прилагаемые к заявке:"]
[null,"Паспорт (копия)"]
[null,"Справка о финансировании (строительство/реконструкция объекта капитального строительства осуществляется за счет (средств бюджета \nг. Москвы/средств бюджета Российской Федерации/собственных средств (частных инвесторов)."]
[null,"Ситуационный план расположения реконструируемого объекта с привязкой к территории населенного пункта или элементам территориального деления в схеме теплоснабжения (М1:2000) (предоставляется в формате pdf)."]
[null,"Сведения о наличии реконструкции/модернизации подключенного объекта (к заявке на реконструкцию/модернизацию/капитальный ремонт тепловых пунктов/внутренних систем теплоснабжения/монтаж АУУ/установку расширительных баков)."]
[null,"Копия действующего договора/контракта на теплоснабжение с актом разграничения балансовой принадлежности и эксплуатационной ответственности сторон."]
[null,"Топографическая карта земельного участка в масштабе 1:500 с указанием всех наземных и подземных комуникаций и сооружений с указанием границ участка, отведенного под застройку и размещением проектируемого (реконструируемого) объекта (к заявке на переустройство (вынос/сохранность) тепловых сетей ПАО \"МОЭК\" в зоне строительства/реконструкции/приспособления объектов капитального строительства на переустройство"]
[null,"Топографическая карта земельного участка в масштабе 1:500 с указанием всех наземных и подземных комуникаций и сооружений с указанием границ участка, отведенного под застройку и размещением проектируемого (реконструируемого) объекта (к заявке на переустройство (вынос/сохранность) тепловых сетей ПАО \"МОЭК\" в зоне строительства/реконструкции/приспособления объектов капитального строительства на переустройство (вынос/сохранность) тепловых сетей ПАО \"МОЭК\" в зоне производства работ по строительству/реконструкции линейного объекта) (предоставляется в формате pdf)."]
[null,"Копии документов, подтверждающих право пользования земельным участком/объектом капитального строительства, в том числе для целей проведения работ на земельном участке/объекте капитального строительства."]
[]
[]
[]
[]
["Заказчик:"]
[null,"Подпись",{"$nulls":3},"Фамилия И.О.",null,null,"Дата: дд.мм.ггггг"]

{"sheet":"Списки","index":3,"n_rows":104,"n_cols":9,"rows_kept":104}
[]
[null,"Схема подключения"]
[]
[null,"Зависимая"]
[null,"Независимая"]
[]
[null,"Округ"]
[]
[null,"ЦАО"]
[null,"САО"]
[null,"СВАО"]
[null,"ВАО"]
[null,"ЮВАО"]
[null,"ЮАО"]
[null,"ЮЗАО"]
[null,"ЗАО"]
[null,"СЗАО"]
[null,"Новомосковский АО"]
[null,"Троицкий АО"]
[null,"Зеленоградский АО"]
[]
[null,"Назначение объекта"]
[{"$nulls":8},"Отключение объектов капитального строительства от тепловых сетей"]
["№","Категория","Комментарий"]
[null,null,"-"]
[1,"Жилые дома","Жилые дома"]
[2,"Общественные и административно-бытовые помещения","Гостиницы, общежития, пансионаты, д/о, мотели"]
[3,"ДОУ","Детсады, ясли"]
[4,"Объекты спортивного назначения","Стадионы, ФОК, бассейны, спортзалы, спортшколы"]
[5,"Здравоохранение","Больницы, родильные дома, поликлиники, амбулатории, госпитали, морги"]
[6,"Образование","Школы, интернаты, дом ребенка, ПТУ, училища, Вузы, амбулатории"]
[7,"Административно-офисные помещения","МФК, офисы, деловые центры, типографии, почта"]
[8,"Социально-бытовые объекты","Прачечные, химчистки, душевые, бани,парикмахерские, общественные туалеты"]
[9,"Объекты торгового назначения","Магазин, торговые центры, торговые залы, аптеки, вещевой рынок, ларьки, торговые палатки"]
[10,"Досугово-развлекательные учреждения","Дом культуры, интернет-кафе, дискотеки, клубы"]
[11,"Культурные объекты","Театры, кинотеатры, музеи, постоянно действующие выставочные комплексы (центры)"]
[12,"Предприятия общественного питания","Столовые, кафе, рестораны, пиццерии, хлебопекарня"]
[13,"Объекты производственного назначения","Заводы, цеха, станции, тепловые пункты, депо, гаражи,ремонтно-механические мастерские, склады, АЗС,СТО"]
[14,"Объекты городской инфраструктуры","Вокзалы, парки, оранжереи, теплицы, сельхоз.рынки"]
[15,"Транспортная инфраструктура","Дороги, эстакады, мосты, тоннели, путепроводы, жел.дор.пути"]
[16,"Религиозные сооружения","Храм, церковь, синагога, мечеть, монастырь, часовня, кирха"]
[17,"Объекты защиты населения","Полиция, мчс, военные, ГИБДД, вневедомственная охрана, ЧОПы, военная полиция"]
[18,"Объекты складского назначения","Склады, навесы, ангары, сараи"]
[19,"Нежилые помещения","Объекты заявлены как нежилые помещение без уточнения дальнейшего назначения"]
[20,"Комплексная застройка","Большая застройка, куда попадают  объекты из разных категорий"]
[21,"Временные объекты","бытовки, строительные городки, объекты механизации"]
[22,"Объекты незавершенного строительства","незавершенные объекты для проведения отделочных и пуско-наладочных работ"]
[23,"Прочее","Все, что не попало в категории выше"]
[]
[null,"Отделения сбыта"]
[]
[null,"Отделение сбыта №1 - г. Москва, ул. Складочная, д. 1А, стр. 1"]
[null,"Отделение сбыта №2 - г. Москва, ул. Бибиревская, д. 8 кор. 1"]
[null,"Отделение сбыта №3 - г. Москва, ул. Шарикоподшипниковская, д.1"]
[null,"Отделение сбыта №4 - г.Москва, пр. Андропова, д. 36 к. 2"]
[null,"Отделение сбыта №5 - г.Москва, ул.Героев Панфиловцев, д.10, к. 1"]
[null,"Отделение сбыта №6 - г.Зеленоград, корп. 1111А"]
[null,"Отделение сбыта №7 - г.Московский, 3 мкр., д.2а"]
[]
[]
[null,"Режим теплопотрбления"]
[]
[null,"непрерывный"]
[null,"односменный"]
[null,"двухсменный"]
[null,"сезонный"]
[]
[]
[null,"Требования к надежности"]
[]
[null,"1 категория - потребители, не допускающие перерывов в подаче расчетного количества теплоты и снижения температуры воздуха в помещениях ниже расчетных"]
[null,"2 категория - потребители, допускающие снижение температуры в отапливаемых помещениях на период ликвидации аварии, но не более 54 ч: \n-        жилых и общественных зданий до 12 °С; \n-        промышленных зданий до 8 °С  "]
[null,"3 категория - остальные потребители"]
[]
[]
[null,"Виды ТЗ ЦТП МОЭК","Виды ТЗ МОЭК"]
[null,null,"капитальный ремонт (то есть изменение параметров тепловых сетей и их участков (частей – ЦТП, ИТП, внутренних систем теплопотребления зданий/здания), которое не влечет за собой изменение класса, категории и (или) первоначально установленных показателей функционирования таких объектов и при котором не требуется изменение границ полос отвода и (или) охранных зон объектов) тепловых сетей и не требуется изменение тепловой нагрузки (кроме объектов подключения и объектов реновации)",1]
[null,null,"капитальный ремонт (то есть изменение параметров тепловых сетей и их участков (частей – ЦТП, ИТП, внутренних систем теплопотребления зданий/здания), которое не влечет за собой изменение класса, категории и (или) первоначально установленных показателей функционирования таких объектов и при котором не требуется изменение границ полос отвода и (или) охранных зон объектов) тепловых сетей и не требуется изменение тепловой нагрузки (кроме объектов подключения и объектов реновации). Повторное обращение",2]
[null,null,"переключение подключенных потребителей сохраняемой опорной застройки в зоне работ по строительству/реконструкции объектов (кроме объектов подключения и объектов реновации). Повторное обращение",3]
[null,null,"переключение подключенных потребителей сохраняемой опорной застройки в зоне работ по строительству/реконструкции объектов (кроме объектов подключения и объектов реновации). Повторное обращение",4]
[null,null,"ликвидация (демонтаж) тепловых сетей, не принадлежащих заказчику, попадающих в зону работ по строительству / реконструкции объекта капитального строительства / линейного объекта (кроме объектов подключения и объектов реновации)",5]
[null,null,"ликвидация (демонтаж) тепловых сетей, не принадлежащих заказчику, попадающих в зону работ по строительству / реконструкции объекта капитального строительства / линейного объекта (кроме объектов подключения и объектов реновации). Повторное обращение.",6]
[null,null,"переустройство (вынос, сохранность) тепловых сетей, не принадлежащих Заказчику, попадающих в зону работ по строительству/реконструкции объекта капитального строительства/линейного объекта (кроме объектов подключения и объектов реновации)",7]
[null,null,"переустройство (вынос, сохранность) тепловых сетей, не принадлежащих Заказчику, попадающих в зону работ по строительству/реконструкции объекта капитального строительства/линейного объекта (кроме объектов подключения и объектов реновации). Повторное обращение",8]
[null,null,"установка автоматизированного узла управления",9]
[null,null,"установка автоматизированного узла управления. Повторное обращение.",10]
[null,null,"замена расширительного бака открытого типа (перенос расширительного бака).",11]
[null,null,"замена расширительного бака открытого типа (перенос расширительного бака). Повторное обращение.",12]
[null,null,"организация системы дистанционного контроля трубопроводов в ППУ изоляции на участках тепловых сетей с выводом информации на ДО Филиала.",13]
[null,null,"организация системы дистанционного контроля трубопроводов в ППУ изоляции на участках тепловых сетей с выводом информации на ДО Филиала. Повторное обращение.",14]
[null,null,"перевод открытой системы горячего водоснабжения на закрытую при реконструкции объектов капитального строительства.",15]
[null,null,"перевод открытой системы горячего водоснабжения на закрытую при реконструкции объектов капитального строительства. Повторное обращение.",16]
[null,null,"реконструкция/модернизация тепловых сетей (ЦТП) заказчика без реконструкции/модернизации подключенного объекта",17]
[null,null,"реконструкция/модернизация тепловых сетей (ЦТП) заказчика без реконструкции/модернизации подключенного объекта. Повторное обращение.",18]
[null,null,"телемеханизация камер",19]
[null,null,"телемеханизация камер. Повторное обращение.",20]
[null,null,"вынос (перекладка) кабеля связи",21]
[null,null,"вынос (перекладка) кабеля связи. Повторное обращение.",22]
[null,null,"завершение работ по строительству и вводу в эксплуатацию линейных объектов, не участвующих в процессе технологического присоединения и (или) возводимых за счет бюджетных средств",23]
[null,null,"завершение работ по строительству и вводу в эксплуатацию линейных объектов, не участвующих в процессе технологического присоединения и (или) возводимых за счет бюджетных средств. Повторное обращение.",24]
[null,null,"устройство резервного теплового ввода для объекта капитального строительства",25]
[null,null,"устройство резервного теплового ввода для объекта капитального строительства. Повторное обращение.",26]
[null,null,"ввод в постоянную эксплуатацию объекта с оформлением проектной, исполнительной документации и получения разрешения МТУ «Ростехнадзора»",27]
[null,null,"ввод в постоянную эксплуатацию объекта с оформлением проектной, исполнительной документации и получения разрешения МТУ «Ростехнадзора». Повторное обращение.",28]